fUSD/lending_fUSD_20240819
["ID","MTS","AMOUNT","RATE_DAILY","PERIOD"]
[335256359,1724046646706,-500.0,0.00010999,2]
[335256360,1724046646716,-500.0,0.00010999,2]
[335256361,1724046646725,-500.0,0.00010999,2]
[335256362,1724046646734,-500.0,0.00010999,2]
[335256363,1724046646743,-500.0,0.00010999,2]
[335256364,1724046646752,-500.0,0.00010999,2]
[335256365,1724046646762,-500.0,0.00010999,2]
[335256366,1724046646771,-294.67,0.00010999,2]
[335256367,1724046646781,-500.0,0.00010999,2]
[335256368,1724046646790,-500.0,0.00010999,2]
[335256369,1724046646800,-500.0,0.00010999,2]
[335256370,1724046646809,-500.0,0.00010999,2]
[335256371,1724046646819,-500.0,0.00010999,2]
[335256372,1724046646828,-500.0,0.00010999,2]
[335256373,1724046646837,-500.0,0.00010999,2]
[335256374,1724046646846,-441.47,0.00010999,2]
[335256375,1724046646855,-500.0,0.00010999,2]
[335256376,1724046646865,-500.0,0.00010999,2]
[335256377,1724046646874,-500.0,0.00010999,2]
[335256378,1724046646884,-500.0,0.00010999,2]
[335256379,1724046646893,-500.0,0.00010999,2]
[335256380,1724046646903,-500.0,0.00010999,2]
[335256381,1724046646912,-500.0,0.00010999,2]
[335256382,1724046646921,-500.0,0.00010999,2]
[335256383,1724046646930,-500.0,0.00010999,2]
[335256384,1724046646940,-500.0,0.00010999,2]
[335256385,1724046646949,-500.0,0.00010999,2]
[335256386,1724046646958,-500.0,0.00010999,2]
[335256387,1724046646968,-606.5190849,0.00010999,2]
[335256388,1724046646977,-500.0,0.00010999,2]
[335256389,1724046646986,-500.0,0.00010999,2]
[335256390,1724046646995,-500.0,0.00010999,2]
[335256391,1724046647004,-500.0,0.00010999,2]
[335256392,1724046647013,-175.15,0.00010999,2]
[335256393,1724046647023,-500.0,0.00010999,2]
[335256394,1724046647032,-500.0,0.00010999,2]
[335256395,1724046647041,-500.0,0.00010999,2]
[335256396,1724046647050,-500.0,0.00010999,2]
[335256397,1724046647060,-500.0,0.00010999,2]
[335256398,1724046647069,-500.0,0.00010999,2]
[335256399,1724046647078,-500.0,0.00010999,2]
[335256400,1724046647088,-500.0,0.00010999,2]
[335256401,1724046647097,-500.0,0.00010999,2]
[335256402,1724046647109,-407.83297956,0.00010999,2]
[335256403,1724046647119,-500.0,0.00010999,2]
[335256404,1724046647128,-500.0,0.00010999,2]
[335256405,1724046647138,-500.0,0.00010999,2]
[335256406,1724046647148,-500.0,0.00010999,2]
[335256407,1724046647157,-500.0,0.00010999,2]
[335256408,1724046647166,-500.0,0.00010999,2]
[335256409,1724046647175,-500.0,0.00010999,2]
[335256410,1724046647188,-500.0,0.00010999,2]
[335256411,1724046647197,-364.76,0.00010999,2]
[335256412,1724046647206,-500.0,0.00010999,2]
[335256413,1724046647216,-500.0,0.00010999,2]
[335256414,1724046647225,-500.0,0.00010999,2]
[335256415,1724046647235,-500.0,0.00010999,2]
[335256416,1724046647243,-500.0,0.00010999,2]
[335256417,1724046647252,-500.0,0.00010999,2]
[335256418,1724046647263,-500.0,0.00010999,2]
[335256419,1724046647272,-500.0,0.00010999,2]
[335256420,1724046647281,-500.0,0.00010999,2]
[335256421,1724046647290,-500.0,0.00010999,2]
[335256422,1724046647299,-500.0,0.00010999,2]
[335256423,1724046647308,-500.0,0.00010999,2]
[335256424,1724046647318,-500.0,0.00010999,2]
[335256425,1724046647327,-500.0,0.00010999,2]
[335256426,1724046647335,-500.0,0.00010999,2]
[335256427,1724046647345,-500.0,0.00010999,2]
[335256428,1724046647354,-500.0,0.00010999,2]
[335256429,1724046647364,-500.0,0.00010999,2]
[335256430,1724046647376,-500.0,0.00010999,2]
[335256431,1724046647386,-500.0,0.00010999,2]
[335256432,1724046647396,-500.0,0.00010999,2]
[335256433,1724046647405,-500.0,0.00010999,2]
[335256434,1724046647415,-500.0,0.00010999,2]
[335256435,1724046647426,-500.0,0.00010999,2]
[335256436,1724046647437,-500.0,0.00010999,2]
[335256437,1724046647448,-500.0,0.00010999,2]
[335256438,1724046647458,-500.0,0.00010999,2]
[335256439,1724046647468,-188.35338425,0.00010999,2]
[335256440,1724046647476,-500.0,0.00010999,2]
[335256441,1724046647486,-302.92,0.00010999,2]
[335256442,1724046647495,-500.0,0.00010999,2]
[335256443,1724046647505,-500.0,0.00010999,2]
[335256444,1724046647516,-500.0,0.00010999,2]
[335256445,1724046647526,-500.0,0.00010999,2]
[335256446,1724046647536,-500.0,0.00010999,2]
[335256447,1724046647546,-500.0,0.00010999,2]
[335256448,1724046647556,-500.0,0.00010999,2]
[335256449,1724046647566,-500.0,0.00010999,2]
[335256450,1724046647578,-500.0,0.00010999,2]
[335256451,1724046647587,-191.8913147,0.00010999,2]
[335256452,1724046647597,-500.0,0.00010999,2]
[335256453,1724046647608,-500.0,0.00010999,2]
[335256454,1724046647617,-500.0,0.00010999,2]
[335256455,1724046647628,-500.0,0.00010999,2]
[335256456,1724046647638,-500.0,0.00010999,2]
[335256457,1724046647647,-500.0,0.00010999,2]
[335256458,1724046647658,-500.0,0.00010999,2]
[335256459,1724046647667,-500.0,0.00010999,2]
[335256460,1724046647676,-500.0,0.00010999,2]
[335256461,1724046647685,-500.0,0.00010999,2]
[335256462,1724046647694,-500.0,0.00010999,2]
[335256463,1724046647703,-500.0,0.00010999,2]
[335256464,1724046647712,-500.0,0.00010999,2]
[335256465,1724046647721,-500.0,0.00010999,2]
[335256466,1724046647731,-500.0,0.00010999,2]
[335256467,1724046647741,-500.0,0.00010999,2]
[335256468,1724046647752,-500.0,0.00010999,2]
[335256469,1724046647761,-500.0,0.00010999,2]
[335256470,1724046647769,-500.0,0.00010999,2]
[335256471,1724046647778,-500.0,0.00010999,2]
[335256472,1724046647787,-500.0,0.00010999,2]
[335256473,1724046647796,-500.0,0.00010999,2]
[335256474,1724046647805,-500.0,0.00010999,2]
[335256475,1724046647815,-595.45859166,0.00010999,2]
[335256476,1724046647824,-500.0,0.00010999,2]
[335256477,1724046647833,-500.0,0.00010999,2]
[335256478,1724046647842,-500.0,0.00010999,2]
[335256479,1724046647852,-500.0,0.00010999,2]
[335256480,1724046647861,-500.0,0.00010999,2]
[335256481,1724046647870,-500.0,0.00010999,2]
[335256482,1724046647879,-500.0,0.00010999,2]
[335256483,1724046647888,-500.0,0.00010999,2]
[335256484,1724046647897,-500.0,0.00010999,2]
[335256485,1724046647906,-500.0,0.00010999,2]
[335256486,1724046647915,-281.56192099,0.00010999,2]
[335256487,1724046647924,-500.0,0.00010999,2]
[335256488,1724046647933,-500.0,0.00010999,2]
[335256489,1724046647942,-500.0,0.00010999,2]
[335256490,1724046647951,-500.0,0.00010999,2]
[335256491,1724046647959,-500.0,0.00010999,2]
[335256492,1724046647970,-500.0,0.00010999,2]
[335256493,1724046647979,-500.0,0.00010999,2]
[335256494,1724046647987,-9.67795829,0.00010999,2]
[335256495,1724046648003,-490.32204171,0.00010999,2]
[335256496,1724046648012,-500.0,0.00010999,2]
[335256497,1724046648021,-500.0,0.00010999,2]
[335256498,1724046648030,-500.0,0.00010999,2]
[335256499,1724046648039,-500.0,0.00010999,2]
[335256500,1724046648048,-447.57392884,0.00010999,2]
[335256501,1724046648057,-500.0,0.00010999,2]
[335256502,1724046648066,-500.0,0.00010999,2]
[335256503,1724046648075,-500.0,0.00010999,2]
[335256504,1724046648084,-500.0,0.00010999,2]
[335256505,1724046648093,-500.0,0.00010999,2]
[335256506,1724046648102,-416.94322948,0.00010999,2]
[335256507,1724046648111,-500.0,0.00010999,2]
[335256508,1724046648120,-495.02529681,0.00010999,2]
[335256509,1724046648129,-132.10946681,0.00010999,2]
[335256510,1724046648149,-155.0,0.00010888,2]
[335256511,1724046648158,-267.91126348,0.00010999,2]
[335256512,1724046735505,500.0,8.861e-05,2]
[335256513,1724046736037,500.0,9.071e-05,2]
[335256514,1724046736577,500.0,9.832e-05,2]
[335256516,1724046749814,500.0,8.914e-05,2]
[335256517,1724046922179,305.00194793,9.899e-05,2]
[335256518,1724046933305,512.36,9.891e-05,2]
[335256519,1724046939303,155.0,9.899e-05,2]
[335256520,1724046950340,213.8629983,9.899e-05,2]
[335256521,1724046951817,1167.07813517,9.899e-05,2]
[335256522,1724046971414,1034.44657863,9.899e-05,2]
[335256523,1724046982071,200.0,9.885e-05,2]
[335256524,1724047041737,177.0,9.885e-05,2]
[335256525,1724047052034,377.79,8.219e-05,2]
[335256527,1724047119169,-250.0,9.926e-05,2]
[335256528,1724047119191,-830.8,9.931e-05,2]
[335256530,1724047336016,500.0,9.25e-05,2]
[335256531,1724047336507,500.0,9.691e-05,2]
[335256532,1724047352546,330.08670893,9.593e-05,2]
[335256533,1724047415689,12124.0,9.9e-05,2]
[335256535,1724047451249,536.19,9.859e-05,2]
[335256536,1724047493891,590.11,9.856e-05,2]
[335256537,1724047524366,358.9,8.219e-05,2]
[335256538,1724047574894,329.2,9.848e-05,2]
[335256542,1724047715959,-250.0,9.908e-05,2]
[335256543,1724047715987,-300.0,9.912e-05,2]
[335256544,1724047716014,-3327.49681216,9.913e-05,2]
[335256547,1724047716052,-2881.76300087,9.913e-05,2]
[335256548,1724047725733,4438.67,9.869e-05,2]
[335256558,1724047819142,415.17522534,9.899e-05,2]
[335256562,1724047832007,-642.98538281,9.962e-05,2]
[335256563,1724047832018,-1725.0,9.988e-05,2]
[335256564,1724047832027,-300.0,9.999e-05,2]
[335256565,1724047832037,-300.0,9.999e-05,2]
[335256566,1724047832046,-270.58164358,9.999e-05,2]
[335256567,1724047832055,-341.14193703,0.0001,4]
[335256568,1724047832064,-936.75169288,0.0001,2]
[335256569,1724047832074,-300.13681126,0.0001,2]
[335256570,1724047832083,-972.3580284,0.0001,2]
[335256571,1724047832092,-1012.0,0.0001,2]
[335256572,1724047832102,-458.47016596,0.00010009,2]
[335256573,1724047832111,-170.93,0.00010095,2]
[335256574,1724047832121,-291.17202967,0.00010097,2]
[335256575,1724047832130,-358.9,0.00010469,2]
[335256577,1724047832139,-500.0,0.00010606,2]
[335256579,1724047832148,-2281.26249869,0.00010843,2]
[335256581,1724047832157,-155.0,0.00010852,2]
[335256583,1724047832167,-264.49036255,0.00010852,2]
[335256585,1724047832176,-2281.26249869,0.00010853,2]
[335256587,1724047832185,-2281.26249869,0.00010858,2]
[335256589,1724047832195,-2281.26249869,0.00010859,2]
[335256590,1724047832204,-2281.26249869,0.00010861,2]
[335256592,1724047832213,-1842.05408104,0.00010871,2]
[335256594,1724047832224,-293.23145074,0.00010871,2]
[335256600,1724047837954,-0.20194538,0.00010871,2]
[335256601,1724047837990,-145.77502153,0.00010871,2]
[335256602,1724047838000,-2281.26249869,0.00010879,2]
[335256603,1724047838010,-2281.26249869,0.0001088,2]
[335256604,1724047838020,-628.20735706,0.00010888,2]
[335256605,1724047838029,-253.75415,0.0001089,2]
[335256606,1724047838040,-1465.533,0.00010898,2]
[335256607,1724047838049,-215.56710439,0.00010898,2]
[335256608,1724047838059,-150.0,0.00010898,2]
[335256609,1724047838067,-45568.3214,0.00010899,2]
[335256610,1724047838085,-199.93772353,0.00010899,2]
[335256611,1724047838095,-735.48,0.000109,2]
[335256612,1724047838104,-1404.94452,0.0001094,2]
[335256613,1724047838114,-182.16467268,0.00010994,2]
[335256614,1724047838123,-454.07390712,0.00010995,2]
[335256615,1724047838132,-459.75898753,0.00010995,2]
[335256616,1724047838141,-1506.66,0.00010996,2]
[335256617,1724047838151,-1506.66,0.00010996,2]
[335256618,1724047838160,-2191.16,0.00010996,2]
[335256619,1724047838169,-2191.16,0.00010996,2]
[335256620,1724047838178,-779.81,0.00010996,2]
[335256621,1724047838187,-779.81,0.00010996,2]
[335256622,1724047838196,-6423.44,0.00010996,2]
[335256623,1724047838206,-6423.44,0.00010996,2]
[335256624,1724047838216,-2308.56,0.00010996,2]
[335256625,1724047838226,-2308.56,0.00010996,2]
[335256626,1724047838235,-6503.45,0.00010996,2]
[335256627,1724047838244,-6503.45,0.00010996,2]
[335256628,1724047838254,-1559.77,0.00010996,2]
[335256629,1724047838264,-1559.77,0.00010996,2]
[335256630,1724047838275,-3256.43,0.00010996,2]
[335256631,1724047838284,-3256.43,0.00010996,2]
[335256632,1724047838293,-500.0,0.00010996,2]
[335256634,1724047838303,-500.0,0.00010996,2]
[335256636,1724047838313,-500.0,0.00010996,2]
[335256637,1724047838324,-500.0,0.00010996,2]
[335256638,1724047838333,-500.0,0.00010996,2]
[335256639,1724047838342,-500.0,0.00010996,2]
[335256640,1724047838352,-500.0,0.00010996,2]
[335256641,1724047838361,-500.0,0.00010996,2]
[335256642,1724047838370,-670.02,0.00010996,2]
[335256643,1724047838380,-670.02,0.00010996,2]
[335256644,1724047838389,-500.0,0.00010996,2]
[335256645,1724047838397,-500.0,0.00010996,2]
[335256646,1724047838406,-500.0,0.00010996,2]
[335256647,1724047838415,-500.0,0.00010996,2]
[335256648,1724047838425,-500.0,0.00010996,2]
[335256649,1724047838437,-500.0,0.00010996,2]
[335256650,1724047838446,-500.0,0.00010996,2]
[335256651,1724047838456,-500.0,0.00010996,2]
[335256652,1724047838466,-990.16,0.00010996,2]
[335256653,1724047838476,-990.16,0.00010996,2]
[335256654,1724047838485,-500.0,0.00010996,2]
[335256655,1724047838495,-500.0,0.00010996,2]
[335256656,1724047838504,-500.0,0.00010996,2]
[335256657,1724047838513,-2418.91,0.00010996,2]
[335256658,1724047838522,-2418.91,0.00010996,2]
[335256659,1724047838532,-500.0,0.00010996,2]
[335256660,1724047838543,-607.02,0.00010996,2]
[335256661,1724047838554,-607.02,0.00010996,2]
[335256662,1724047838565,-813.94,0.00010996,2]
[335256663,1724047838575,-813.94,0.00010996,2]
[335256664,1724047838584,-525.28,0.00010996,2]
[335256665,1724047838596,-525.28,0.00010996,2]
[335256666,1724047838606,-856.82,0.00010996,2]
[335256667,1724047838615,-856.82,0.00010996,2]
[335256668,1724047838624,-500.0,0.00010996,2]
[335256669,1724047838633,-500.0,0.00010996,2]
[335256670,1724047838643,-952.78,0.00010996,2]
[335256671,1724047838652,-952.78,0.00010996,2]
[335256672,1724047838662,-976.39,0.00010996,2]
[335256673,1724047838673,-976.39,0.00010996,2]
[335256674,1724047838683,-613.13,0.00010996,2]
[335256675,1724047838694,-613.13,0.00010996,2]
[335256676,1724047838704,-1325.62,0.00010996,2]
[335256677,1724047838714,-1325.62,0.00010996,2]
[335256678,1724047838724,-680.96,0.00010996,2]
[335256679,1724047838736,-680.96,0.00010996,2]
[335256680,1724047838746,-599.97926971,0.00010996,2]
[335256681,1724047838755,-752.39,0.00010996,2]
[335256682,1724047838765,-752.39,0.00010996,2]
[335256683,1724047838774,-560.74433513,0.00010996,2]
[335256684,1724047838783,-864.96,0.00010996,2]
[335256685,1724047838792,-864.96,0.00010996,2]
[335256686,1724047838801,-2598.78,0.00010996,2]
[335256687,1724047838812,-2598.78,0.00010996,2]
[335256688,1724047838822,-500.0,0.00010996,2]
[335256689,1724047838832,-500.0,0.00010996,2]
[335256690,1724047838842,-1541.34,0.00010996,2]
[335256691,1724047838851,-1541.34,0.00010996,2]
[335256692,1724047838861,-1358.67,0.00010997,2]
[335256693,1724047838873,-1358.67,0.00010997,2]
[335256694,1724047838881,-1358.67,0.00010997,2]
[335256695,1724047838891,-1358.67,0.00010997,2]
[335256696,1724047838900,-1364.14,0.00010997,2]
[335256697,1724047838909,-1364.14,0.00010997,2]
[335256698,1724047838918,-1364.14,0.00010997,2]
[335256699,1724047838927,-1364.14,0.00010997,2]
[335256700,1724047838938,-510.71684718,0.00010997,2]
[335256701,1724047839099,-541.359971,0.00010997,2]
[335256702,1724047839110,-372.82353063,0.00010997,2]
[335256703,1724047839120,-500.0,0.00010997,2]
[335256704,1724047839129,-563.01073017,0.00010997,2]
[335256705,1724047839138,-542.68590163,0.00010997,2]
[335256706,1724047839147,-515.42523892,0.00010997,2]
[335256707,1724047839157,-517.6174873,0.00010997,2]
[335256708,1724047839167,-520.98896464,0.00010997,2]
[335256709,1724047839177,-609.06199478,0.00010997,2]
[335256710,1724047839187,-527.51596819,0.00010997,2]
[335256711,1724047839196,-520.51864608,0.00010997,2]
[335256712,1724047839205,-515.176859,0.00010997,2]
[335256713,1724047839214,-513.93303885,0.00010997,2]
[335256714,1724047839223,-515.70582885,0.00010997,2]
[335256715,1724047839232,-518.72530463,0.00010997,2]
[335256716,1724047839241,-597.20278568,0.00010997,2]
[335256717,1724047839252,-512.55115664,0.00010997,2]
[335256718,1724047839261,-513.31982527,0.00010997,2]
[335256719,1724047839270,-530.67438717,0.00010997,2]
[335256720,1724047839280,-533.84618396,0.00010997,2]
[335256721,1724047839290,-517.74471465,0.00010997,2]
[335256722,1724047839299,-524.2099978,0.00010997,2]
[335256723,1724047839310,-523.19780111,0.00010997,2]
[335256724,1724047839322,-519.08063586,0.00010997,2]
[335256725,1724047839331,-525.5528187,0.00010997,2]
[335256726,1724047839340,-521.61818294,0.00010997,2]
[335256727,1724047839349,-500.0,0.00010997,2]
[335256728,1724047839358,-151.90999729,0.00010997,2]
[335256729,1724047839366,-536.26870586,0.00010997,2]
[335256730,1724047839375,-513.48831998,0.00010997,2]
[335256731,1724047839387,-528.99788452,0.00010997,2]
[335256732,1724047839398,-517.72841355,0.00010997,2]
[335256733,1724047839409,-626.31774659,0.00010997,2]
[335256734,1724047839419,-500.0,0.00010997,2]
[335256735,1724047839430,-169.28941505,0.00010997,2]
[335256736,1724047839439,-516.94135011,0.00010997,2]
[335256737,1724047839449,-517.95639322,0.00010997,2]
[335256738,1724047839458,-619.33774239,0.00010997,2]
[335256739,1724047839468,-514.64477196,0.00010997,2]
[335256740,1724047839479,-525.27424065,0.00010997,2]
[335256741,1724047839490,-526.06058167,0.00010997,2]
[335256742,1724047839499,-512.54291004,0.00010997,2]
[335256743,1724047839508,-520.49012093,0.00010997,2]
[335256744,1724047839519,-633.781013,0.00010997,2]
[335256745,1724047839531,-517.20109488,0.00010997,2]
[335256746,1724047839541,-531.98397686,0.00010997,2]
[335256747,1724047839552,-531.77656574,0.00010997,2]
[335256748,1724047839561,-600.71290827,0.00010997,2]
[335256749,1724047839571,-520.56979625,0.00010997,2]
[335256750,1724047839580,-531.41941697,0.00010997,2]
[335256751,1724047839590,-500.0,0.00010997,2]
[335256752,1724047839601,-500.0,0.00010997,2]
[335256753,1724047839614,-500.0,0.00010997,2]
[335256754,1724047839627,-500.0,0.00010997,2]
[335256755,1724047839639,-500.0,0.00010997,2]
[335256756,1724047839649,-513.63595606,0.00010997,2]
[335256757,1724047839660,-518.55459338,0.00010997,2]
[335256758,1724047839671,-540.96562421,0.00010997,2]
[335256759,1724047839680,-500.0,0.00010997,2]
[335256760,1724047839690,-154.451806,0.00010997,2]
[335256761,1724047839701,-500.0,0.00010997,2]
[335256762,1724047839711,-508.12976745,0.00010997,2]
[335256763,1724047839721,-500.0,0.00010997,2]
[335256764,1724047839731,-500.0,0.00010997,2]
[335256765,1724047839741,-542.91240995,0.00010997,2]
[335256766,1724047839751,-500.0,0.00010997,2]
[335256767,1724047839760,-500.0,0.00010997,2]
[335256768,1724047839769,-519.30827108,0.00010997,2]
[335256769,1724047839778,-500.0,0.00010997,2]
[335256770,1724047839787,-512.01603168,0.00010997,2]
[335256771,1724047839796,-514.91094085,0.00010997,2]
[335256772,1724047839805,-500.0,0.00010997,2]
[335256773,1724047839815,-500.0,0.00010997,2]
[335256774,1724047839825,-500.0,0.00010997,2]
[335256775,1724047839834,-500.0,0.00010997,2]
[335256776,1724047839844,-512.41813823,0.00010997,2]
[335256777,1724047839853,-500.0,0.00010997,2]
[335256778,1724047839863,-500.0,0.00010997,2]
[335256779,1724047839872,-500.0,0.00010997,2]
[335256780,1724047839881,-500.0,0.00010997,2]
[335256781,1724047839891,-500.0,0.00010997,2]
[335256782,1724047839901,-500.0,0.00010997,2]
[335256783,1724047839910,-500.0,0.00010997,2]
[335256784,1724047839920,-500.0,0.00010997,2]
[335256785,1724047839929,-5208.42,0.00010997,2]
[335256786,1724047839939,-5208.42,0.00010997,2]
[335256787,1724047839948,-5208.42,0.00010997,2]
[335256788,1724047839959,-5208.42,0.00010997,2]
[335256789,1724047839968,-3401.7,0.00010997,2]
[335256790,1724047839977,-3401.7,0.00010997,2]
[335256791,1724047839986,-3401.7,0.00010997,2]
[335256792,1724047839995,-3401.7,0.00010997,2]
[335256793,1724047840004,-266.415236,0.00010997,2]
[335256794,1724047840013,-954.02,0.00010997,2]
[335256795,1724047840023,-954.02,0.00010997,2]
[335256796,1724047840032,-954.02,0.00010997,2]
[335256797,1724047840041,-954.02,0.00010997,2]
[335256798,1724047840049,-954.02,0.00010997,2]
[335256799,1724047840058,-954.02,0.00010997,2]
[335256800,1724047840068,-48223.52,0.00010997,2]
[335256801,1724047840078,-48223.52,0.00010997,2]
[335256802,1724047840087,-48223.52,0.00010997,2]
[335256803,1724047840097,-48223.52,0.00010997,2]
[335256804,1724047840106,-18570.22287244,0.00010997,2]
[335256805,1724047840121,-659.50000001,0.00010997,2]
[335256806,1724047840132,-28993.79712755,0.00010997,2]
[335256807,1724047840141,-48223.52,0.00010997,2]
[335256808,1724047840151,-1506.66,0.00010997,2]
[335256809,1724047840160,-1506.66,0.00010997,2]
[335256810,1724047840170,-1506.66,0.00010997,2]
[335256811,1724047840179,-1506.66,0.00010997,2]
[335256812,1724047840188,-4567.75,0.00010997,2]
[335256813,1724047840197,-4567.75,0.00010997,2]
[335256814,1724047840206,-4567.75,0.00010997,2]
[335256815,1724047840215,-4567.75,0.00010997,2]
[335256816,1724047840224,-4567.75,0.00010997,2]
[335256817,1724047840233,-4567.75,0.00010997,2]
[335256818,1724047840243,-2191.16,0.00010997,2]
[335256819,1724047840252,-2191.16,0.00010997,2]
[335256820,1724047840260,-2191.16,0.00010997,2]
[335256821,1724047840269,-2191.16,0.00010997,2]
[335256822,1724047840279,-779.81,0.00010997,2]
[335256823,1724047840288,-779.81,0.00010997,2]
[335256824,1724047840297,-779.81,0.00010997,2]
[335256825,1724047840306,-779.81,0.00010997,2]
[335256826,1724047840315,-6423.44,0.00010997,2]
[335256827,1724047840326,-6423.44,0.00010997,2]
[335256828,1724047840336,-5350.97971636,0.00010997,2]
[335256829,1724047840405,-1069.93815344,9.988e-05,2]
[335256830,1724047840414,-271.08518666,0.00010997,2]
[335256845,1724047842902,-301.616,0.00010997,2]
[335256846,1724047842914,-499.75909698,0.00010997,2]
[335256847,1724047842923,-322.57748964,0.00010997,2]
[335256848,1724047842934,-3614.04456827,0.00010997,2]
[335256849,1724047842944,-1273.32780051,0.00010997,2]
[335256850,1724047842955,-840.64392545,0.00010997,2]
[335256851,1724047842974,-372.84621613,0.00010997,2]
[335256852,1724047842983,-3634.65317502,0.00010997,2]
[335256853,1724047842994,-230.44682498,0.00010997,2]
[335256854,1724047843004,-3865.1,0.00010997,2]
[335256855,1724047843013,-3865.1,0.00010997,2]
[335256856,1724047843022,-3865.1,0.00010997,2]
[335256857,1724047843031,-3865.1,0.00010997,2]
[335256858,1724047843040,-3865.1,0.00010997,2]
[335256859,1724047843049,-2308.56,0.00010997,2]
[335256860,1724047843059,-2308.56,0.00010997,2]
[335256861,1724047843068,-2308.56,0.00010997,2]
[335256862,1724047843079,-2308.56,0.00010997,2]
[335256863,1724047843088,-1250.09,0.00010997,2]
[335256864,1724047843099,-1250.09,0.00010997,2]
[335256865,1724047843108,-1250.09,0.00010997,2]
[335256866,1724047843118,-1250.09,0.00010997,2]
[335256867,1724047843127,-1250.09,0.00010997,2]
[335256868,1724047843137,-1250.09,0.00010997,2]
[335256869,1724047843147,-6503.45,0.00010997,2]
[335256870,1724047843157,-6503.45,0.00010997,2]
[335256871,1724047843166,-6503.45,0.00010997,2]
[335256872,1724047843176,-6503.45,0.00010997,2]
[335256873,1724047843187,-4057.65,0.00010997,2]
[335256875,1724047843197,-4057.65,0.00010997,2]
[335256877,1724047843207,-4057.65,0.00010997,2]
[335256879,1724047843216,-4057.65,0.00010997,2]
[335256880,1724047843225,-4057.65,0.00010997,2]
[335256882,1724047843234,-4057.65,0.00010997,2]
[335256884,1724047843243,-1559.77,0.00010997,2]
[335256886,1724047843252,-1559.77,0.00010997,2]
[335256888,1724047843261,-1559.77,0.00010997,2]
[335256890,1724047843270,-1559.77,0.00010997,2]
[335256892,1724047843279,-6350.163518,0.00010997,2]
[335256894,1724047843288,-6350.163518,0.00010997,2]
[335256896,1724047843297,-6350.163518,0.00010997,2]
[335256898,1724047843307,-6350.163518,0.00010997,2]
[335256900,1724047843316,-6350.163518,0.00010997,2]
[335256902,1724047843326,-6350.163518,0.00010997,2]
[335256904,1724047843335,-6350.163518,0.00010997,2]
[335256906,1724047843344,-6350.163518,0.00010997,2]
[335256908,1724047843354,-6350.163518,0.00010997,2]
[335256910,1724047843363,-6350.163518,0.00010997,2]
[335256912,1724047843372,-6350.163518,0.00010997,2]
[335256914,1724047843381,-6350.163518,0.00010997,2]
[335256916,1724047843390,-6350.163518,0.00010997,2]
[335256918,1724047843399,-6350.163518,0.00010997,2]
[335256920,1724047843408,-3256.43,0.00010997,2]
[335256921,1724047843417,-3256.43,0.00010997,2]
[335256923,1724047843427,-3256.43,0.00010997,2]
[335256925,1724047843436,-3256.43,0.00010997,2]
[335256927,1724047843445,-500.0,0.00010997,2]
[335256929,1724047843454,-500.0,0.00010997,2]
[335256931,1724047843463,-500.0,0.00010997,2]
[335256933,1724047843472,-500.0,0.00010997,2]
[335256935,1724047843482,-500.0,0.00010997,2]
[335256937,1724047843491,-500.0,0.00010997,2]
[335256939,1724047843500,-500.0,0.00010997,2]
[335256941,1724047843509,-500.0,0.00010997,2]
[335256943,1724047843519,-500.0,0.00010997,2]